bitfinex-derivatives/quotes_ETHF0:USTF0_20240923
["timestamp","ask_amount","ask_price","bid_price","bid_amount"]
[1727061864559,3.2078,2679.9,2679.0,4.15256376]
[1727061864776,3.2078,2679.9,2679.1,0.94476376]
[1727061864960,3.2078,2679.9,2679.4,0.37322]
[1727061865261,3.2078,2679.9,2679.0,3.2078]
[1727061865262,3.2078,2679.9,2679.2,0.94476376]
[1727061865463,3.2078,2679.9,2679.2,0.37326]
[1727061865661,3.2078,2679.9,2679.3,0.37325]
[1727061866473,3.2078,2679.9,2679.2,0.37326]
[1727061866773,3.2078,2679.9,2679.3,0.37324]
[1727061867273,3.2078,2679.9,2679.2,0.37326]
[1727061867590,3.2078,2679.9,2679.1,0.94476376]
[1727061867868,3.2078,2679.9,2679.3,0.37323]
[1727061868271,3.2078,2679.9,2679.2,0.37325]
[1727061868465,3.58096,2679.9,2679.3,3.2078]
[1727061868661,3.58096,2679.9,2679.1,0.94476376]
[1727061868861,3.58096,2679.9,2679.1,1.31803376]
[1727061869066,0.37318,2679.8,2679.1,1.31803376]
[1727061869267,0.37318,2679.8,2679.1,0.37327]
[1727061869464,0.37318,2679.8,2679.0,4.15256376]
[1727061869465,0.37319,2679.7,2679.0,3.58108]
[1727061869869,3.2078,2679.6,2678.6,4.15256376]
[1727061870076,1.2059,2679.5,2678.6,3.2078]
[1727061870270,1.2875,2679.4,2678.6,3.2078]
[1727061870471,1.2875,2679.4,2678.8,0.3733]
[1727061871371,1.2875,2679.4,2678.9,0.3733]
[1727061871570,1.2875,2679.4,2678.5,1.2783]
[1727061871571,3.2078,2679.2,2678.5,1.2783]
[1727061871776,1.62655,2679.3,2678.6,0.37334]
[1727061872077,0.37326,2679.2,2678.5,0.37335]
[1727061872284,0.37328,2679.1,2678.4,0.37336]
[1727061872579,3.2078,2678.7,2678.0,3.2078]
[1727061872874,0.3734,2678.3,2677.6,0.37348]
[1727061873179,3.2078,2678.4,2677.7,0.37346]
[1727061873382,3.58117,2678.4,2677.7,0.37346]
[1727061873583,3.58117,2678.4,2677.3,3.2078]
[1727061873584,3.2078,2678.4,2677.3,3.2078]
[1727061873771,3.2078,2678.4,2677.7,0.37346]
[1727061874176,3.2078,2678.4,2677.5,2.51]
[1727061874673,3.2078,2678.4,2677.5,0.37348]
[1727061874674,3.58118,2678.4,2677.5,0.37348]
[1727061875576,3.2078,2678.4,2677.3,3.2078]
[1727061875777,3.2078,2678.4,2677.3,0.37351]
[1727061875978,3.2078,2678.1,2677.1,1.2954]
[1727061876173,0.37338,2678.4,2677.6,0.37347]
[1727061876481,3.2078,2678.5,2677.4,2.51]
[1727061876982,3.2078,2678.5,2677.8,3.2078]
[1727061877271,3.2078,2678.5,2677.7,2.51]
[1727061877783,3.2078,2678.5,2677.5,3.2078]
[1727061878077,3.58117,2678.5,2677.6,0.37348]
[1727061878276,3.2078,2678.4,2677.4,2.51]
[1727061878478,3.2078,2678.4,2677.2,3.2078]
[1727061878776,3.2078,2678.4,2677.4,2.51]
[1727061878980,3.2078,2678.4,2677.8,0.37345]
[1727061879674,3.2078,2678.4,2677.7,0.37346]
[1727061880078,3.2078,2678.4,2677.4,2.51]
[1727061880275,4.5075,2678.4,2677.4,2.51]
[1727061880479,0.37339,2678.3,2677.5,0.37349]
[1727061881778,3.2078,2678.2,2677.5,0.37349]
[1727061882173,1.2997,2678.4,2677.2,3.2078]
[1727061882378,0.3734,2678.2,2677.5,0.37349]
[1727061882583,3.2078,2678.2,2677.6,0.37348]
[1727061882785,3.2078,2678.2,2677.5,0.37349]
[1727061883079,3.2078,2678.2,2677.4,0.3735]
[1727061883286,3.2078,2678.2,2677.2,3.2078]
[1727061883584,3.58121,2678.1,2677.4,0.3735]
[1727061884090,0.37339,2678.3,2677.6,0.37348]
[1727061884384,2.4708,2678.6,2678.3,0.37338]
[1727061884586,2.4708,2678.6,2678.4,0.37337]
[1727061884981,6.2044,2678.6,2678.4,0.37337]
[1727061885181,3.7336,2678.5,2677.9,3.2078]
[1727061885391,2.4708,2678.6,2677.6,4.4786]
[1727061885686,3.2078,2678.4,2677.7,0.37346]
[1727061886481,3.2078,2678.4,2677.6,4.4786]
[1727061886983,0.3734,2678.3,2677.6,4.85208]
[1727061887386,3.2078,2678.4,2677.6,3.2078]
[1727061887585,0.37339,2678.3,2677.6,3.58128]
[1727061888191,0.37338,2678.3,2677.6,3.58128]
[1727061888393,2.04,2678.3,2677.6,3.58128]
[1727061888695,2.41339,2678.3,2677.6,3.58128]
[1727061888891,2.04,2678.3,2677.6,3.2078]
[1727061889187,0.37342,2678.1,2677.5,0.3735]
[1727061890082,0.37341,2678.2,2677.6,0.37348]
[1727061890283,0.37341,2678.1,2677.5,0.37349]
[1727061890688,6.9422,2678.0,2677.3,0.37352]
[1727061890990,2.5175,2677.9,2677.4,0.37351]
[1727061891182,3.2078,2677.8,2677.3,0.37352]
[1727061891379,2.5175,2677.9,2677.4,0.37351]
[1727061891582,3.2078,2677.5,2676.7,3.2078]
[1727061891790,2.04,2677.7,2677.2,0.37353]
[1727061891990,3.2078,2677.3,2677.1,0.37355]
[1727061892887,2.04,2677.7,2677.1,0.37355]
[1727061893093,2.04,2677.7,2676.8,1.63708]
[1727061893094,3.2078,2677.3,2676.8,1.63708]
[1727061893282,3.2078,2677.3,2676.7,2.04]
[1727061893487,3.2078,2677.6,2677.1,0.37355]
[1727061893988,3.2078,2677.6,2676.9,2.04]
[1727061894293,1.3035,2677.8,2677.1,2.04]
[1727061894495,1.3035,2677.8,2677.4,0.3735]
[1727061894697,1.3035,2677.8,2677.4,0.37351]
[1727061894881,1.3035,2677.8,2677.1,2.04]
[1727061895293,1.3035,2677.8,2677.4,0.3735]
[1727061895605,1.3035,2677.8,2677.6,0.37347]
[1727061895796,0.37338,2678.4,2677.0,1.2635]
[1727061895797,3.2078,2678.9,2677.7,2.04]
[1727061895996,1.2227,2679.1,2678.5,2.04]
[1727061896289,3.2627,2679.1,2678.3,0.37338]
[1727061896487,6.4705,2679.1,2678.2,3.2078]
[1727061896686,2.04,2679.0,2678.1,2.04]
[1727061897095,2.04,2679.0,2678.2,0.3734]
[1727061897096,2.4133,2679.0,2678.2,0.3734]
[1727061897286,2.04,2678.7,2678.0,0.37343]
[1727061897492,2.04,2678.7,2677.9,3.2078]
[1727061897989,2.04,2678.7,2677.8,3.3084]
[1727061897990,3.2078,2679.5,2678.6,2.04]
[1727061898191,3.2078,2679.8,2679.0,2.04]
[1727061898394,3.2748,2680.2,2678.9,3.2078]
[1727061898395,3.2078,2680.1,2678.9,3.2078]
[1727061898584,3.2078,2680.1,2679.2,0.37326]
[1727061899194,3.2078,2680.1,2678.9,3.2078]
[1727061899389,3.2078,2680.1,2679.1,0.37326]
[1727061899786,3.2078,2680.1,2679.4,0.37323]
[1727061899988,3.2078,2680.1,2679.5,0.37321]
[1727061900185,2.4862,2680.2,2679.6,0.3732]
[1727061900391,2.4862,2680.2,2679.1,3.2078]
[1727061900583,2.4862,2680.2,2679.5,0.37321]
[1727061900994,2.4862,2680.2,2679.1,3.2078]
[1727061901192,8.204,2680.2,2679.1,3.2078]
[1727061901395,3.2078,2679.9,2679.1,3.58107]
[1727061901589,3.2078,2679.9,2679.1,3.2078]
[1727061901899,3.2078,2679.9,2678.7,1.3215]
[1727061901900,2.51,2679.8,2678.7,4.5293]
[1727061902088,2.51,2679.8,2679.0,0.37329]
[1727061902392,3.2078,2679.9,2679.0,0.37329]
[1727061902988,3.2078,2679.9,2679.0,3.2078]
[1727061903193,2.4862,2680.2,2679.4,0.37322]
[1727061903393,2.4862,2680.2,2679.5,0.37322]
[1727061903586,2.4862,2680.2,2679.0,3.2078]
[1727061903587,2.85932,2680.2,2679.0,3.2078]
[1727061903792,0.37316,2680.0,2679.0,3.2078]
[1727061903996,2.4862,2680.2,2679.3,3.2078]
[1727061904194,2.4862,2680.2,2679.4,0.37323]
[1727061904698,2.4862,2680.2,2679.3,3.58104]
[1727061904896,2.4862,2680.2,2678.9,3.58109]
[1727061905094,0.37316,2679.9,2678.9,3.2078]
[1727061905285,3.2078,2680.1,2679.0,0.37328]
[1727061905286,0.37315,2680.0,2679.0,0.37328]
[1727061905491,3.2078,2680.1,2678.9,3.5811]
[1727061905686,0.37315,2680.0,2678.9,3.2078]
[1727061905892,0.37315,2680.0,2679.1,0.37326]
[1727061906093,3.2078,2680.1,2679.0,0.37328]
[1727061906295,3.2078,2679.4,2678.9,3.2078]
[1727061906598,2.4689,2679.3,2678.9,3.2078]
[1727061906896,2.4689,2679.3,2677.7,3.2078]
[1727061906897,3.2078,2679.0,2677.7,3.2078]
[1727061907102,3.2078,2678.5,2678.3,0.37337]
[1727061907291,3.2078,2678.8,2678.2,0.37339]
[1727061907791,3.2078,2678.8,2677.8,3.2078]
[1727061908091,3.2078,2678.8,2678.5,0.37334]
[1727061908290,2.4689,2679.3,2678.5,0.37335]
[1727061908291,3.2078,2679.1,2678.5,0.37335]
[1727061908488,3.2078,2679.1,2678.1,3.2078]
[1727061908795,3.2078,2679.1,2678.5,0.37334]
[1727061908997,3.2078,2679.1,2678.7,0.37333]
[1727061909293,3.2078,2679.1,2678.6,0.37334]
[1727061910194,3.2078,2679.1,2678.7,0.37333]
[1727061910394,3.2078,2678.8,2678.7,0.37333]
[1727061910604,3.2078,2678.8,2678.1,3.2078]
[1727061910786,3.2078,2678.8,2678.7,0.37333]
[1727061911191,3.2078,2678.8,2678.1,3.2078]
[1727061911388,3.2078,2678.8,2678.5,0.37335]
[1727061911607,3.2078,2678.8,2678.4,0.37337]
[1727061911795,2.84215,2679.3,2677.9,2.5208]
[1727061911796,3.2078,2678.5,2677.9,2.5208]
[1727061912102,3.2078,2678.5,2678.4,0.37337]
[1727061912395,3.2078,2678.9,2678.8,0.37332]
[1727061912802,12.9406,2678.9,2677.9,2.5208]
[1727061913099,2.51,2679.4,2678.5,0.37336]
[1727061913100,3.2078,2678.6,2678.5,0.37336]
[1727061913400,3.2078,2678.9,2678.6,0.37334]
[1727061913605,2.4944,2679.5,2677.9,5.7286]
[1727061913606,3.2078,2679.3,2677.9,5.7286]
[1727061913901,3.2078,2678.7,2677.9,5.7286]
[1727061914094,3.2078,2678.7,2678.3,0.37338]
[1727061914295,3.2078,2678.7,2677.9,5.7286]
[1727061914493,3.2078,2678.7,2677.9,1.2646]
[1727061914494,3.2078,2678.4,2677.9,1.2646]
[1727061914699,3.2078,2678.4,2677.7,0.37346]
[1727061915404,3.2078,2678.0,2677.4,1.2672]
[1727061915594,3.2078,2678.3,2677.8,0.37345]
[1727061915901,3.2078,2678.3,2677.7,0.37346]
[1727061916504,3.2078,2678.3,2677.6,0.37348]
[1727061917408,3.2078,2678.3,2677.4,1.2672]
[1727061917802,3.2078,2678.3,2677.6,0.37347]
[1727061918407,3.2078,2678.3,2677.6,0.37348]
[1727061918608,3.2078,2678.3,2677.4,1.2672]
[1727061918805,3.2078,2677.8,2677.2,4.5199]
[1727061919199,3.2078,2677.8,2677.3,0.37352]
[1727061919398,3.2078,2677.8,2677.2,4.89343]
[1727061920099,3.2078,2677.8,2677.3,0.37352]
[1727061920717,3.2078,2677.8,2677.4,0.37351]
[1727061921306,3.2078,2677.8,2677.3,0.37352]
[1727061921504,3.2078,2678.1,2678.0,0.37343]
[1727061921708,2.4109,2678.6,2678.2,0.3734]
[1727061922007,2.4109,2678.6,2677.6,2.4684]
[1727061922212,2.4109,2678.6,2678.2,0.3734]
[1727061923130,2.4109,2678.6,2677.7,7.83440802]
[1727061923131,1.1977,2678.6,2678.4,0.37336]
[1727061923301,3.2078,2679.0,2677.8,5.7178]
[1727061923513,3.2078,2679.0,2678.2,2.51]
[1727061923912,3.2078,2679.0,2678.7,0.37333]
[1727061924111,3.2078,2679.0,2678.3,7.80395685]
[1727061924302,1.2934,2679.2,2678.9,0.3733]
[1727061924506,1.2934,2679.2,2678.4,1.3335]
[1727061924709,1.2934,2679.2,2678.7,0.37332]
[1727061924910,1.2934,2679.2,2678.4,4.5413]
[1727061925217,4.4946,2679.4,2678.5,10.32086261]
[1727061925511,4.4946,2679.4,2679.0,0.37328]
[1727061925717,3.2078,2679.1,2678.4,1.3335]
[1727061925902,3.2078,2679.1,2678.7,0.37332]
[1727061926106,3.2078,2679.1,2678.6,0.37334]
[1727061926515,1.2868,2679.4,2678.4,1.3335]
[1727061926516,3.2078,2679.2,2678.4,1.3335]
[1727061926809,1.2868,2679.4,2678.8,0.37332]
[1727061927406,1.2868,2679.4,2678.4,1.3335]
[1727061927407,3.2078,2679.2,2678.4,1.3335]
[1727061927604,3.2078,2679.2,2678.7,0.37333]
[1727061927820,3.2078,2679.2,2678.8,0.37331]
[1727061928016,1.2868,2679.4,2678.8,0.37331]
[1727061929815,1.2868,2679.4,2678.4,1.3335]
[1727061929816,1.2868,2679.4,2678.7,0.37332]
[1727061930114,3.2078,2678.9,2678.5,0.37335]
[1727061930317,3.2078,2678.9,2678.4,1.3335]
[1727061930529,3.2078,2679.2,2678.4,1.3335]
[1727061930815,3.2078,2679.2,2678.8,0.37332]
[1727061931010,3.2078,2679.2,2678.7,0.37332]
[1727061931814,3.2078,2679.2,2678.8,0.37331]
[1727061932511,3.2078,2679.2,2678.4,1.3335]
[1727061932706,3.2078,2679.2,2679.1,0.37327]
[1727061932912,3.2078,2679.5,2679.0,0.37328]
[1727061933127,3.2078,2679.5,2678.5,11.59720831]
[1727061933510,3.2078,2679.5,2679.2,0.37325]
[1727061933814,3.2078,2679.5,2679.3,0.37324]
[1727061934016,3.2078,2679.5,2678.6,3.2078]
[1727061934017,3.2078,2679.5,2679.4,0.37323]
[1727061934212,1.3418,2679.8,2679.4,3.732]
[1727061934414,1.3418,2679.8,2679.5,0.37321]
[1727061934713,2.94262,2680.3,2678.9,3.2078]
[1727061934714,4.553,2680.3,2680.0,0.37314]
[1727061934920,4.553,2680.3,2679.7,0.37318]
[1727061935114,3.2078,2680.0,2679.1,1.2509]
[1727061935417,3.2078,2680.0,2679.3,7.91436608]
[1727061935614,3.2078,2680.0,2679.2,0.37325]
[1727061935615,3.2078,2679.7,2679.2,0.37325]
[1727061936011,3.2078,2679.4,2679.2,0.37325]
[1727061936220,3.2078,2679.7,2679.1,1.2509]
[1727061936524,3.2078,2679.7,2679.2,0.37325]
[1727061937028,3.2078,2679.7,2679.3,0.37324]
[1727061937524,3.2078,2679.7,2679.1,0.37327]
[1727061937712,0.37318,2679.8,2678.9,3.2078]
[1727061937713,3.2078,2679.4,2679.0,0.37328]
[1727061938126,3.2078,2679.4,2679.1,0.37327]
[1727061938818,3.2078,2679.4,2678.9,3.2078]
[1727061939324,3.2078,2679.1,2678.4,0.37336]
[1727061939516,3.2078,2679.1,2678.1,2.04]
[1727061939517,3.2978,2679.0,2678.1,2.04]
[1727061939828,3.2978,2679.0,2678.5,0.37335]
[1727061939829,3.2078,2678.8,2678.5,0.37335]
[1727061940415,3.2078,2678.8,2678.6,3.7336]
[1727061940621,3.2078,2679.1,2679.0,0.37329]
[1727061940914,1.2778,2679.6,2678.7,7.91491074]
[1727061940915,1.3484,2679.5,2678.7,7.91491074]
[1727061941125,1.3484,2679.5,2678.8,2.6528]
[1727061941322,1.3484,2679.5,2679.3,0.37324]
[1727061941519,1.3484,2679.5,2679.1,0.37327]
[1727061941917,1.3484,2679.5,2679.2,0.37326]
[1727061942124,1.3484,2679.5,2678.8,2.6528]
[1727061942322,1.3484,2679.5,2679.0,0.37327]
[1727061942618,1.3484,2679.5,2679.1,0.37327]
[1727061942855,1.3484,2679.5,2678.8,2.6528]
[1727061943826,1.3484,2679.5,2679.1,0.37326]
[1727061944218,1.3484,2679.5,2678.8,2.6528]
[1727061944424,1.3484,2679.5,2679.0,0.37327]
[1727061944624,1.3484,2679.5,2679.1,0.37327]
[1727061944820,1.3484,2679.5,2679.1,3.58107]
[1727061945026,1.3484,2679.5,2678.8,2.6528]
[1727061945924,2.51,2680.0,2678.8,2.6528]
[1727061945925,3.2078,2680.0,2679.1,3.2078]
[1727061946129,3.2078,2680.0,2679.7,0.37318]
[1727061946329,3.2078,2680.0,2679.1,3.2078]
[1727061946530,3.2078,2680.0,2678.8,2.6528]
[1727061947023,3.2078,2680.0,2679.2,0.37325]
[1727061947024,3.2078,2679.7,2679.2,0.37325]
[1727061947333,3.2078,2680.0,2679.3,3.2078]
[1727061947533,3.2078,2680.0,2679.7,0.37318]
[1727061947729,3.2078,2680.0,2679.8,0.37317]
[1727061948026,3.2078,2680.0,2679.4,0.37322]
[1727061948228,3.2078,2680.0,2679.5,0.37321]
[1727061948926,3.2078,2680.3,2679.1,8.00496257]
[1727061949120,3.58091,2680.3,2679.2,1.2527]
[1727061949419,3.58091,2680.3,2679.7,0.37319]
[1727061949420,3.2078,2680.3,2679.7,0.37319]
[1727061950019,2.8971,2680.4,2679.6,3.2078]
[1727061950020,1.26,2680.4,2679.6,3.2078]
[1727061950218,5.72e-06,2680.5,2680.3,0.3731]
[1727061950426,5.72e-06,2680.5,2679.7,10.65361753]
[1727061950624,5.72e-06,2680.5,2680.2,0.37312]
[1727061951042,5.72e-06,2680.5,2680.4,0.37309]
[1727061951216,5.72e-06,2680.5,2680.3,0.3731]
[1727061951522,5.72e-06,2680.5,2680.0,7.70382114]
[1727061952216,5.72e-06,2680.5,2680.4,0.37309]
[1727061952430,5.72e-06,2680.5,2680.0,7.70382114]
[1727061952628,5.72e-06,2680.5,2680.3,0.3731]
[1727061952828,5.72e-06,2680.5,2680.0,7.70382114]
[1727061953632,5.72e-06,2680.5,2680.4,0.37309]
[1727061954128,5.72e-06,2680.5,2680.3,0.3731]
[1727061954432,5.72e-06,2680.5,2680.4,0.37309]
[1727061956424,5.72e-06,2680.5,2680.4,4.10349]
[1727061956834,5.72e-06,2680.5,2680.4,10.10349]
[1727061957046,0.18631952,2681.7,2681.6,0.37293]
[1727061957330,3.2078,2682.8,2682.2,0.37283]
[1727061957558,3.2078,2682.8,2682.2,2.51]
[1727061957724,3.2078,2682.8,2682.3,0.37282]
[1727061958037,3.2078,2682.8,2682.2,2.51]
[1727061958228,3.2078,2682.8,2682.4,8.0586811]
[1727061958425,3.2078,2683.1,2682.4,8.0586811]
[1727061958729,3.2078,2683.1,2682.5,9.30929682]
[1727061958920,3.2078,2683.1,2682.5,7.98229682]
[1727061959124,3.2078,2682.8,2681.8,1.327]
[1727061959330,3.2078,2683.1,2682.4,2.51]
[1727061959528,3.2078,2683.1,2682.6,0.37279]
[1727061959725,3.2078,2683.1,2682.3,3.2078]
[1727061960120,3.2078,2683.1,2682.6,3.2078]
[1727061960323,3.2078,2683.1,2683.0,0.37273]
[1727061960524,3.2078,2683.1,2683.0,4.09993]
[1727061960721,3.2078,2683.1,2683.0,10.09993]
[1727061961125,1.3161,2684.0,2683.0,10.09993]
[1727061961126,3.2078,2683.4,2683.2,0.37269]
[1727061961338,3.2078,2683.4,2683.3,0.37269]
[1727061961833,3.2078,2683.4,2683.3,4.09909]
[1727061962027,4.5239,2684.0,2683.6,0.37264]
[1727061962333,3.2078,2684.3,2683.8,2.51]
[1727061962526,0.00476064,2684.8,2682.3,3.2078]
[1727061962527,3.2078,2683.9,2682.3,3.2078]
[1727061962835,3.2078,2683.7,2682.7,3.2078]
[1727061963166,3.2078,2683.6,2682.8,2.51]
[1727061963330,3.2078,2683.6,2683.1,0.37271]
[1727061963528,3.2078,2683.6,2682.8,2.51]
[1727061963733,2.595,2683.8,2682.8,2.51]
[1727061964033,3.2078,2684.0,2683.3,3.2078]
[1727061964331,3.2078,2684.0,2683.4,8.03312196]
[1727061964632,3.2078,2684.0,2683.2,2.88269]
[1727061964823,3.2078,2684.2,2683.3,0.37269]
[1727061965029,3.58037,2684.2,2683.2,2.8827]
[1727061965330,2.5867,2684.4,2684.3,0.37255]
[1727061965331,3.2078,2684.4,2684.3,0.37255]
[1727061965535,0.00476064,2684.8,2684.3,12.60815]
[1727061965729,0.00476064,2684.8,2684.7,2.88249]
[1727061966231,1.3235,2686.2,2684.7,2.88249]
[1727061966232,1.3235,2686.2,2685.2,0.37243]
[1727061966437,3.2078,2686.0,2685.2,2.51]
[1727061966728,1.3078,2686.3,2685.3,15.12164842]
[1727061966729,4.5156,2686.3,2685.3,15.12164842]
[1727061966929,4.5156,2686.3,2685.3,10.86507333]
[1727061967126,3.2078,2686.2,2685.6,2.51]
[1727061967330,3.2078,2686.5,2686.0,2.51]
[1727061967734,3.2078,2687.1,2686.4,2.51]
[1727061968231,3.2078,2687.1,2686.5,10.91047718]
[1727061968533,3.2078,2686.8,2685.8,3.2078]
[1727061968923,1.274,2687.8,2685.4,4.5108]
[1727061968924,3.2078,2686.7,2685.4,4.5108]
[1727061969249,3.2078,2686.7,2685.2,2.51]
[1727061969250,3.2078,2685.9,2685.2,5.7178]
[1727061969423,3.2078,2686.5,2685.8,3.93432866]
[1727061969622,3.2078,2686.5,2685.5,17.00964031]
[1727061969927,3.2078,2686.4,2685.5,5.1156]
[1727061970130,3.2078,2686.4,2685.7,7.95971165]
[1727061970330,3.2078,2686.4,2685.6,7.95971165]
[1727061970532,3.2078,2686.1,2685.0,3.2078]
[1727061970736,3.2078,2686.0,2685.0,3.2078]
[1727061971037,3.2078,2686.3,2685.2,0.37241]
[1727061971333,3.2078,2686.3,2685.3,0.3724]
[1727061971535,3.2078,2686.3,2685.2,2.82]
[1727061971924,3.2078,2685.8,2684.5,3.2078]
[1727061972141,3.2078,2685.6,2684.2,3.2078]
[1727061972435,3.2078,2685.6,2684.7,4.18641634]
[1727061972628,3.2078,2685.6,2684.6,4.18641634]
[1727061972932,3.2078,2685.6,2684.9,2.82]
[1727061974039,3.2078,2685.6,2684.7,3.2078]
[1727061974332,3.2078,2685.6,2684.4,2.82]
[1727061974744,3.2078,2685.6,2684.6,0.3725]
[1727061974934,3.2078,2685.6,2684.9,6.0278]
[1727061975241,3.2078,2685.6,2684.9,2.82]
[1727061975652,3.2078,2685.6,2685.0,3.724]
[1727061975832,3.2078,2685.6,2685.1,0.37244]
[1727061976026,3.2078,2685.6,2685.2,3.724]
[1727061976235,3.2078,2686.2,2685.6,0.37236]
[1727061976447,3.2078,2686.2,2685.5,3.2078]
[1727061976641,3.2078,2686.2,2685.5,3.7232]
[1727061976938,3.2078,2686.2,2685.5,6.931]
[1727061977137,3.2078,2686.2,2685.9,0.37232]
[1727061977332,3.2078,2686.2,2685.7,2.82]
[1727061977537,3.2078,2686.2,2685.7,12.5432]
[1727061977746,3.2078,2686.2,2685.8,4.09554]
[1727061978038,3.2078,2686.2,2685.8,10.09553]
[1727061978227,1.2471,2686.8,2685.8,10.09553]
[1727061978228,4.4549,2686.8,2685.9,3.7232]
[1727061978437,3.2078,2686.4,2685.9,0.37232]
[1727061978732,3.2078,2687.1,2686.1,6.0278]
[1727061979042,3.2078,2687.1,2686.0,20.15845388]
[1727061979043,3.2078,2687.1,2686.5,3.58004]
[1727061979244,3.2078,2687.1,2686.5,3.2078]
[1727061979436,3.2078,2687.1,2686.6,3.7216]
[1727061979640,0.12766647,2687.4,2686.6,23.31333358]
[1727061979934,3.2078,2687.5,2687.0,2.82]
[1727061980134,3.2078,2688.4,2687.4,2.82]
[1727061980336,3.2078,2688.1,2687.2,0.372]
[1727061980537,3.2078,2688.4,2687.5,3.98709061]
[1727061980538,6.41560597,2688.4,2687.5,3.98709061]
[1727061980732,3.2078,2688.4,2687.3,11.90133264]
[1727061980934,1.11186806,2689.1,2686.5,1.3384]
[1727061980935,3.2078,2687.4,2686.5,1.3384]
[1727061981144,3.2078,2687.4,2686.4,0.37226]
[1727061981145,3.2078,2686.7,2685.9,1.3384]
[1727061981339,3.20780597,2686.4,2685.3,1.7164]
[1727061981545,3.20780597,2686.0,2685.3,1.344]
[1727061981843,3.20780597,2685.8,2685.2,3.2078]
[1727061982032,3.20780597,2685.6,2685.2,3.2078]
[1727061983042,1.2578,2686.3,2685.5,0.37237]
[1727061983043,3.2078,2686.3,2685.5,0.37237]
[1727061983239,3.20780597,2686.2,2685.6,0.37237]
[1727061983435,3.20780597,2686.2,2685.5,0.37238]
[1727061983642,3.20780597,2686.0,2685.3,16.68255036]
[1727061983848,3.20780597,2685.8,2685.3,7.90956169]
[1727061984638,1.2519,2686.7,2685.4,9.14169501]
[1727061984639,3.2078,2685.9,2685.4,9.14169501]
[1727061984841,3.20780597,2685.9,2685.3,7.90956169]
[1727061985044,3.20780597,2685.6,2684.7,3.2078]
[1727061985249,1.2519,2686.7,2684.7,3.2078]
[1727061985250,3.2078,2685.4,2684.7,3.2078]
[1727061985436,3.20780597,2685.5,2684.9,7.74722406]
[1727061985652,3.20780597,2685.5,2684.7,11.32750406]
[1727061985838,1.2519,2685.7,2684.7,3.2078]
[1727061986038,1.2519,2685.7,2685.1,3.2078]
[1727061986039,3.20780597,2685.6,2685.1,3.2078]
[1727061986644,4.5338,2686.1,2685.1,12.0278]
[1727061986846,3.20780597,2685.7,2685.2,7.71725618]
[1727061987043,4.5338,2686.1,2685.2,7.71725618]
[1727061987245,3.20780597,2685.7,2685.2,8.08967618]
[1727061987546,3.20780597,2685.9,2685.4,0.37239]
[1727061987751,3.20780597,2685.4,2685.2,7.71725618]
[1727061988050,3.20780597,2685.4,2684.8,3.2078]
[1727061988255,3.20780597,2685.4,2684.9,0.37246]
[1727061988452,3.20780597,2685.4,2684.9,7.72931884]
[1727061988959,1.243,2685.7,2684.9,7.72931884]
[1727061988960,3.20780597,2685.3,2684.9,7.72931884]
[1727061990044,6.41560597,2685.0,2684.3,7.3662]
[1727061990555,3.20780597,2684.9,2684.3,7.3662]
[1727061990738,3.2078,2685.0,2684.3,6.0278]
[1727061990943,1.3215,2685.3,2684.3,6.0278]
[1727061991139,3.20780597,2685.0,2684.3,6.0278]
[1727061991345,3.20780597,2685.0,2684.3,6.40034]
[1727061991646,3.20780597,2685.0,2684.3,6.0278]
[1727061991949,3.20780597,2685.0,2684.3,6.40035]
[1727061992155,3.20780597,2684.8,2684.3,6.0278]
[1727061992454,3.20780597,2685.1,2684.5,0.37251]
[1727061992643,3.20780597,2685.1,2684.6,0.37251]
[1727061992840,3.20780597,2685.1,2684.5,0.37252]
[1727061993039,3.20780597,2685.1,2684.3,6.0278]
[1727061993247,1.243,2685.7,2684.8,0.37247]
[1727061993551,3.20780597,2685.2,2684.7,0.37249]
[1727061993850,3.20780597,2685.3,2684.9,8.2273894]
[1727061994056,3.20780597,2685.3,2684.9,0.37246]
[1727061994355,3.20780597,2685.3,2684.8,0.37248]
[1727061994544,3.20780597,2685.3,2684.9,0.37247]
[1727061994752,3.20780597,2685.3,2684.7,7.81112646]
[1727061994953,3.20780597,2685.3,2684.2,2.82]
[1727061994954,3.20780597,2685.0,2684.3,0.37255]
[1727061995249,3.20780597,2685.0,2684.4,0.37253]
[1727061995449,3.20780597,2685.0,2684.3,11.75121024]
[1727061995852,3.20780597,2685.0,2684.6,0.37251]
[1727061996448,3.20780597,2684.7,2684.3,7.81112646]
[1727061996654,3.20780597,2684.6,2684.3,7.81112646]
[1727061997153,1.2552,2685.4,2684.4,3.7248]
[1727061997366,3.20780597,2685.1,2684.5,0.37251]
[1727061997549,3.20780597,2685.0,2684.5,0.37251]
[1727061997872,3.20780597,2684.9,2684.3,2.82]
[1727061998056,1.2552,2685.4,2684.3,3.19254]
[1727061998057,3.20780597,2684.8,2684.3,3.19254]
[1727061998253,3.20780597,2684.8,2684.4,0.37253]
[1727061998658,1.2552,2685.4,2684.7,2.82]
[1727061998850,3.20780597,2685.3,2684.7,2.82]
[1727061999052,3.20780597,2685.3,2685.1,0.37243]
[1727061999254,3.20780597,2685.3,2684.8,11.23893047]
[1727061999558,3.20780597,2685.2,2684.8,11.23893047]
[1727061999755,3.20780597,2685.2,2685.0,0.37244]
[1727061999960,3.20780597,2685.2,2684.9,0.37246]
[1727062000258,1.3388,2685.5,2684.8,11.23893047]
[1727062000562,3.20780597,2685.1,2684.9,0.37247]
[1727062000958,3.20780597,2685.1,2684.8,11.61140047]
[1727062001258,3.2078,2685.4,2684.4,3.2078]